[Event "Early-Titled-Tuesday-Blitz-March-19-2024"]
[Site "Chess.com"]
[Date "2024.03.19"]
[Round "1"]
[White "Zhigalko_Sergei"]
[Black "SARGISMV"]
[Result "1-0"]
[WhiteElo "2853"]
[BlackElo "2480"]
[TimeControl "180+1"]
[EndTime "8:08:25 PDT"]
[Termination "Zhigalko_Sergei won on time"]

1. e4 {[%clk 0:03:00.9]} 1... e6 {[%clk 0:02:59.3]} 2. d4 {[%clk 0:03:00.9]}
2... d5 {[%clk 0:02:58.1]} 3. e5 {[%clk 0:03:01.6]} 3... c5 {[%clk 0:02:58.2]}
4. c3 {[%clk 0:03:02.2]} 4... Nc6 {[%clk 0:02:58.2]} 5. Nf3 {[%clk 0:03:02.9]}
5... Bd7 {[%clk 0:02:57.4]} 6. Be2 {[%clk 0:03:02.6]} 6... f6 {[%clk 0:02:57.5]}
7. O-O {[%clk 0:03:02.7]} 7... fxe5 {[%clk 0:02:55.4]} 8. Nxe5 {[%clk
0:03:02.3]} 8... Nxe5 {[%clk 0:02:52.8]} 9. dxe5 {[%clk 0:03:03.2]} 9... Qc7
{[%clk 0:02:42.7]} 10. c4 {[%clk 0:03:03.6]} 10... Qxe5 {[%clk 0:02:15.3]} 11.
Re1 {[%clk 0:03:03.7]} 11... O-O-O {[%clk 0:02:02.4]} 12. Bf3 {[%clk 0:03:01.6]}
12... Qd4 {[%clk 0:01:52.6]} 13. cxd5 {[%clk 0:02:40]} 13... Qxd1 {[%clk
0:01:44]} 14. Rxd1 {[%clk 0:02:40.9]} 14... exd5 {[%clk 0:01:43.5]} 15. Rxd5
{[%clk 0:02:34.1]} 15... Nf6 {[%clk 0:01:41.8]} 16. Rd1 {[%clk 0:02:32.6]} 16...
Be7 {[%clk 0:01:34.3]} 17. Nc3 {[%clk 0:02:27.9]} 17... Bg4 {[%clk 0:01:28.7]}
18. Bxg4+ {[%clk 0:02:23.5]} 18... Nxg4 {[%clk 0:01:29.6]} 19. Bf4 {[%clk
0:02:23.6]} 19... Rxd1+ {[%clk 0:01:22.9]} 20. Rxd1 {[%clk 0:02:23.3]} 20... Rd8
{[%clk 0:01:19.7]} 21. Re1 {[%clk 0:01:41.7]} 21... Bf6 {[%clk 0:01:15.5]} 22.
Ne4 {[%clk 0:01:41.2]} 22... Bd4 {[%clk 0:00:54.9]} 23. h3 {[%clk 0:01:37.3]}
23... Rf8 {[%clk 0:00:42.8]} 24. Bg3 {[%clk 0:01:08.6]} 24... Nf6 {[%clk
0:00:26.5]} 25. Nd6+ {[%clk 0:00:59.7]} 25... Kd7 {[%clk 0:00:22.6]} 26. Nf5
{[%clk 0:01:00.2]} 26... Bxb2 {[%clk 0:00:10.6]} 27. Rb1 {[%clk 0:00:58.3]}
27... Bd4 {[%clk 0:00:05.3]} 28. Rxb7+ {[%clk 0:00:55.2]} 28... Kc6 {[%clk
0:00:06]} 29. Rxa7 {[%clk 0:00:20.7]} 29... Ne4 {[%clk 0:00:05.5]} 30. Rc7+
{[%clk 0:00:07.9]} 30... Kd5 {[%clk 0:00:05.6]} 31. Rd7+ {[%clk 0:00:07]} 31...
Kc4 {[%clk 0:00:04.5]} 32. Nd6+ {[%clk 0:00:06.7]} 32... Nxd6 {[%clk 0:00:04]}
33. Rxd6 {[%clk 0:00:07.6]} 33... Ra8 {[%clk 0:00:03.5]} 34. Rd7 {[%clk
0:00:06.4]} 34... Rxa2 {[%clk 0:00:03.3]} 35. h4 {[%clk 0:00:07]} 35... Kd3
{[%clk 0:00:02.5]} 36. h5 {[%clk 0:00:07.1]} 36... h6 {[%clk 0:00:02.4]} 37. Kh2
{[%clk 0:00:06.8]} 37... Ke4 {[%clk 0:00:02.2]} 38. f3+ {[%clk 0:00:06.3]} 38...
Kf5 {[%clk 0:00:01.1]} 39. Bc7 {[%clk 0:00:05.8]} 39... Kg5 {[%clk 0:00:01.5]}
40. Rd5+ {[%clk 0:00:05]} 40... Kf6 {[%clk 0:00:02]} 41. Kh3 {[%clk 0:00:05.4]}
41... Ke6 {[%clk 0:00:02.6]} 42. Rd6+ {[%clk 0:00:05.8]} 42... Ke7 {[%clk
0:00:02.4]} 43. Rd5 {[%clk 0:00:05]} 43... Re2 {[%clk 0:00:02.9]} 44. Bb6 {[%clk
0:00:04.1]} 44... Ke6 {[%clk 0:00:03.5]} 45. Rd8 {[%clk 0:00:04.3]} 45... Rc2
{[%clk 0:00:02.4]} 46. f4 {[%clk 0:00:02.5]} 46... Kf7 {[%clk 0:00:03.3]} 47.
Rd7+ {[%clk 0:00:01.8]} 47... Ke6 {[%clk 0:00:01.7]} 48. Rd8 {[%clk 0:00:02.7]}
48... Kf5 {[%clk 0:00:02.1]} 49. g3 {[%clk 0:00:03.1]} 49... Ke4 {[%clk
0:00:02.6]} 50. Kg4 {[%clk 0:00:03]} 50... Rh2 {[%clk 0:00:02.3]} 51. Re8+
{[%clk 0:00:02.7]} 51... Kd3 {[%clk 0:00:03.2]} 52. Rd8 {[%clk 0:00:02.9]} 52...
Kc4 {[%clk 0:00:03.4]} 53. Rd7 {[%clk 0:00:03.3]} 53... Kd3 {[%clk 0:00:04]} 54.
Bxc5 {[%clk 0:00:03.5]} 54... Rg2 {[%clk 0:00:04.8]} 55. Bxd4 {[%clk 0:00:03.9]}
55... Ke4 {[%clk 0:00:05.5]} 56. Bxg7 {[%clk 0:00:04.2]} 56... Rxg3+ {[%clk
0:00:06.3]} 57. Kxg3 {[%clk 0:00:04.1]} 57... Kf5 {[%clk 0:00:07.2]} 58. Rd5+
{[%clk 0:00:04.3]} 58... Ke6 {[%clk 0:00:07.6]} 59. Re5+ {[%clk 0:00:04.7]}
59... Kf7 {[%clk 0:00:08.5]} 60. Bxh6 {[%clk 0:00:05]} 60... Kg8 {[%clk
0:00:09.4]} 61. Bg5 {[%clk 0:00:05.3]} 61... Kh7 {[%clk 0:00:10.3]} 62. Re6
{[%clk 0:00:05.7]} 1-0

[Event "Early-Titled-Tuesday-Blitz-March-19-2024"]
[Site "Chess.com"]
[Date "2024.03.19"]
[Round "1"]
[White "IngOscarArdila"]
[Black "grzechu96"]
[Result "0-1"]
[WhiteElo "2398"]
[BlackElo "2733"]
[TimeControl "180+1"]
[EndTime "8:08:30 PDT"]
[Termination "grzechu96 won on time"]

1. d3 {[%clk 0:03:00.2]} 1... d5 {[%clk 0:02:59.8]} 2. Nd2 {[%clk 0:03:00.3]}
2... Nf6 {[%clk 0:02:59.5]} 3. e4 {[%clk 0:03:01.2]} 3... e5 {[%clk 0:02:59.3]}
4. Ngf3 {[%clk 0:03:00.8]} 4... Nc6 {[%clk 0:02:59.7]} 5. Be2 {[%clk 0:03:01]}
5... Bd6 {[%clk 0:02:58.9]} 6. O-O {[%clk 0:03:01.1]} 6... O-O {[%clk 0:02:59]}
7. c3 {[%clk 0:03:01.5]} 7... a5 {[%clk 0:02:58.9]} 8. Qc2 {[%clk 0:03:01.6]}
8... Re8 {[%clk 0:02:58.3]} 9. a4 {[%clk 0:03:01.7]} 9... Bf8 {[%clk 0:02:53.4]}
10. Rd1 {[%clk 0:03:01.6]} 10... h6 {[%clk 0:02:48.1]} 11. Nf1 {[%clk
0:03:00.4]} 11... Be6 {[%clk 0:02:46.2]} 12. Ne3 {[%clk 0:02:59.5]} 12... Qd7
{[%clk 0:02:42.1]} 13. b3 {[%clk 0:02:57.1]} 13... d4 {[%clk 0:02:32.5]} 14.
cxd4 {[%clk 0:02:49.2]} 14... exd4 {[%clk 0:02:32.9]} 15. Nc4 {[%clk 0:02:48.5]}
15... b6 {[%clk 0:02:09.6]} 16. Bf4 {[%clk 0:02:26.9]} 16... Bb4 {[%clk
0:01:42]} 17. Nfe5 {[%clk 0:02:23]} 17... Nxe5 {[%clk 0:01:42]} 18. Nxe5 {[%clk
0:02:23.8]} 18... Qc8 {[%clk 0:01:41.4]} 19. Rdc1 {[%clk 0:02:20.5]} 19... Bc3
{[%clk 0:01:41.4]} 20. Rab1 {[%clk 0:02:19]} 20... c5 {[%clk 0:01:40.6]} 21. Nc4
{[%clk 0:02:18.2]} 21... Qc6 {[%clk 0:01:29.7]} 22. Bf3 {[%clk 0:01:59.9]} 22...
Nd7 {[%clk 0:01:22.9]} 23. Nd6 {[%clk 0:01:45.2]} 23... Rf8 {[%clk 0:01:06.4]}
24. Bg3 {[%clk 0:01:38.8]} 24... Bb4 {[%clk 0:00:54.9]} 25. Qe2 {[%clk
0:01:31.8]} 25... Rad8 {[%clk 0:00:49.5]} 26. Nf5 {[%clk 0:01:23.6]} 26... Rfe8
{[%clk 0:00:31.5]} 27. Nxd4 {[%clk 0:01:21]} 27... Qc8 {[%clk 0:00:20.3]} 28.
Nb5 {[%clk 0:01:16.1]} 28... Rf8 {[%clk 0:00:20.5]} 29. Bd6 {[%clk 0:01:13.4]}
29... Rfe8 {[%clk 0:00:20.6]} 30. Nc7 {[%clk 0:01:10.3]} 30... Nb8 {[%clk
0:00:19.2]} 31. Nxe8 {[%clk 0:01:09.1]} 31... Nc6 {[%clk 0:00:19.7]} 32. Nxg7
{[%clk 0:00:38.2]} 32... Rxd6 {[%clk 0:00:19.6]} 33. Nf5 {[%clk 0:00:33.5]}
33... Bxf5 {[%clk 0:00:18.1]} 34. exf5 {[%clk 0:00:34.4]} 34... Nd4 {[%clk
0:00:18.5]} 35. Qe3 {[%clk 0:00:29.1]} 35... Qxf5 {[%clk 0:00:17.9]} 36. Be4
{[%clk 0:00:28.2]} 36... Qg5 {[%clk 0:00:17.4]} 37. Qxg5+ {[%clk 0:00:25.3]}
37... hxg5 {[%clk 0:00:18.3]} 38. Kf1 {[%clk 0:00:25.2]} 38... f5 {[%clk
0:00:17.5]} 39. Bb7 {[%clk 0:00:20.5]} 39... Kg7 {[%clk 0:00:17.1]} 40. Ba6
{[%clk 0:00:19.7]} 40... Re6 {[%clk 0:00:17.8]} 41. Bc4 {[%clk 0:00:18]} 41...
Re2 {[%clk 0:00:17.8]} 42. Bd5 {[%clk 0:00:15]} 42... g4 {[%clk 0:00:15.9]} 43.
h3 {[%clk 0:00:14.7]} 43... Kf6 {[%clk 0:00:14.8]} 44. hxg4 {[%clk 0:00:14.8]}
44... fxg4 {[%clk 0:00:15.7]} 45. Be4 {[%clk 0:00:13]} 45... Kg5 {[%clk
0:00:15.3]} 46. Rd1 {[%clk 0:00:12.5]} 46... Kf4 {[%clk 0:00:14.1]} 47. Kg1
{[%clk 0:00:12.2]} 47... Kg5 {[%clk 0:00:13.2]} 48. g3 {[%clk 0:00:11.8]} 48...
Ra2 {[%clk 0:00:04]} 49. Kg2 {[%clk 0:00:11.6]} 49... Nc2 {[%clk 0:00:02.5]} 50.
Kg1 {[%clk 0:00:09.4]} 50... Bc3 {[%clk 0:00:01.8]} 51. Rdc1 {[%clk 0:00:09.1]}
51... Bd4 {[%clk 0:00:01.8]} 52. b4 {[%clk 0:00:08.5]} 52... Nxb4 {[%clk
0:00:02.1]} 53. Rf1 {[%clk 0:00:08]} 53... Re2 {[%clk 0:00:02.1]} 54. Kg2 {[%clk
0:00:07.9]} 54... Ra2 {[%clk 0:00:02.1]} 55. Ra1 {[%clk 0:00:06.5]} 55... Rxa1
{[%clk 0:00:02.1]} 56. Rxa1 {[%clk 0:00:06.2]} 56... Bxa1 {[%clk 0:00:03]} 57.
f4+ {[%clk 0:00:06.9]} 57... Kf6 {[%clk 0:00:02.3]} 58. Bb7 {[%clk 0:00:05.6]}
58... Bd4 {[%clk 0:00:02.2]} 59. Bc8 {[%clk 0:00:06]} 59... Nxd3 {[%clk
0:00:02.7]} 60. Bxg4 {[%clk 0:00:06.6]} 60... c4 {[%clk 0:00:03.2]} 61. Be2
{[%clk 0:00:05.9]} 61... Nb2 {[%clk 0:00:02.7]} 62. Kf3 {[%clk 0:00:05.5]} 62...
c3 {[%clk 0:00:03.3]} 63. Bd3 {[%clk 0:00:05.9]} 63... Nxd3 {[%clk 0:00:03.6]}
0-1

[Event "Early-Titled-Tuesday-Blitz-March-19-2024"]
[Site "Chess.com"]
[Date "2024.03.19"]
[Round "1"]
[White "Gennady_Kozlov"]
[Black "Mandaloriana19"]
[Result "1/2-1/2"]
[WhiteElo "2661"]
[BlackElo "2341"]
[TimeControl "180+1"]
[EndTime "8:08:30 PDT"]
[Termination "Game drawn - insufficient material"]

1. b3 {[%clk 0:03:00.9]} 1... b6 {[%clk 0:02:56.2]} 2. Bb2 {[%clk 0:03:01.8]}
2... Bb7 {[%clk 0:02:56.5]} 3. e3 {[%clk 0:03:02.2]} 3... e6 {[%clk 0:02:56]} 4.
f4 {[%clk 0:03:02.9]} 4... Nf6 {[%clk 0:02:53.2]} 5. Nf3 {[%clk 0:03:03.1]} 5...
Be7 {[%clk 0:02:53.1]} 6. Be2 {[%clk 0:03:03.8]} 6... O-O {[%clk 0:02:53.5]} 7.
O-O {[%clk 0:03:04.4]} 7... c5 {[%clk 0:02:53.6]} 8. Qe1 {[%clk 0:03:05]} 8...
d6 {[%clk 0:02:52.7]} 9. Qg3 {[%clk 0:03:04.2]} 9... Nbd7 {[%clk 0:02:52.9]} 10.
Nc3 {[%clk 0:03:01.5]} 10... a6 {[%clk 0:02:52.7]} 11. d3 {[%clk 0:03:01.4]}
11... b5 {[%clk 0:02:52.2]} 12. Ne4 {[%clk 0:03:01.9]} 12... Qb6 {[%clk
0:02:46.4]} 13. Rae1 {[%clk 0:02:58.3]} 13... Bc6 {[%clk 0:02:38.4]} 14. Nfg5
{[%clk 0:02:57]} 14... Qb7 {[%clk 0:02:30.1]} 15. Bf3 {[%clk 0:02:56.2]} 15...
h6 {[%clk 0:02:27.5]} 16. Nh3 {[%clk 0:02:50.7]} 16... a5 {[%clk 0:02:21.7]} 17.
Nhf2 {[%clk 0:02:50.2]} 17... a4 {[%clk 0:02:20.2]} 18. Ng4 {[%clk 0:02:50.1]}
18... Kh7 {[%clk 0:02:15.9]} 19. Qh4 {[%clk 0:02:38.8]} 19... Bxe4 {[%clk
0:01:36.4]} 20. dxe4 {[%clk 0:02:23.7]} 20... a3 {[%clk 0:01:08.4]} 21. e5
{[%clk 0:02:16.6]} 21... Nxg4 {[%clk 0:00:45.6]} 22. Qxe7 {[%clk 0:02:13.7]}
22... d5 {[%clk 0:00:36.5]} 23. Bc1 {[%clk 0:02:12.6]} 23... h5 {[%clk 0:00:28]}
24. Bxg4 {[%clk 0:02:04.3]} 24... hxg4 {[%clk 0:00:28.9]} 25. Qh4+ {[%clk
0:02:04.2]} 25... Kg8 {[%clk 0:00:29.4]} 26. Qxg4 {[%clk 0:02:05.1]} 26... c4
{[%clk 0:00:29.1]} 27. Rf3 {[%clk 0:02:04.4]} 27... Rfc8 {[%clk 0:00:23.6]} 28.
Qh4 {[%clk 0:01:52.7]} 28... Nf8 {[%clk 0:00:20.6]} 29. f5 {[%clk 0:01:34.6]}
29... exf5 {[%clk 0:00:20.4]} 30. Rxf5 {[%clk 0:01:35.2]} 30... Ng6 {[%clk
0:00:20.9]} 31. Qg5 {[%clk 0:01:34.3]} 31... cxb3 {[%clk 0:00:21.2]} 32. cxb3
{[%clk 0:01:33.8]} 32... Ra7 {[%clk 0:00:20.9]} 33. h4 {[%clk 0:01:32.1]} 33...
Qe7 {[%clk 0:00:20]} 34. h5 {[%clk 0:01:28.2]} 34... Qxg5 {[%clk 0:00:19.3]} 35.
Rxg5 {[%clk 0:01:29.1]} 35... Nf8 {[%clk 0:00:17.8]} 36. h6 {[%clk 0:01:28]}
36... g6 {[%clk 0:00:17.4]} 37. e6 {[%clk 0:01:21.9]} 37... Nxe6 {[%clk
0:00:17.7]} 38. Rxd5 {[%clk 0:01:21.7]} 38... Rc2 {[%clk 0:00:17.4]} 39. Rd2
{[%clk 0:01:16]} 39... Rac7 {[%clk 0:00:17.3]} 40. Rxc2 {[%clk 0:01:14.9]} 40...
Rxc2 {[%clk 0:00:18.2]} 41. Bxa3 {[%clk 0:01:15]} 41... Rxa2 {[%clk 0:00:19]}
42. Bd6 {[%clk 0:01:15.2]} 42... Kh7 {[%clk 0:00:19.3]} 43. Rf1 {[%clk
0:01:13.9]} 43... f5 {[%clk 0:00:19.9]} 44. Bf4 {[%clk 0:01:12]} 44... Nxf4
{[%clk 0:00:19.3]} 45. Rxf4 {[%clk 0:01:12.9]} 45... Kxh6 {[%clk 0:00:19.8]} 46.
Rb4 {[%clk 0:01:12.9]} 46... Re2 {[%clk 0:00:19.6]} 47. Rxb5 {[%clk 0:01:13]}
47... Rxe3 {[%clk 0:00:20.2]} 48. Kf2 {[%clk 0:01:13.3]} 48... Rc3 {[%clk
0:00:20.6]} 49. b4 {[%clk 0:01:13.5]} 49... Kg5 {[%clk 0:00:21]} 50. Rb7 {[%clk
0:01:13.6]} 50... Kf4 {[%clk 0:00:21.3]} 51. Rg7 {[%clk 0:01:08.3]} 51... Rc2+
{[%clk 0:00:21.5]} 52. Kg1 {[%clk 0:01:07.4]} 52... g5 {[%clk 0:00:22.1]} 53.
Kh2 {[%clk 0:01:05.7]} 53... g4 {[%clk 0:00:22.6]} 54. Rd7 {[%clk 0:01:00.5]}
54... Rb2 {[%clk 0:00:23.1]} 55. Rd4+ {[%clk 0:00:58.8]} 55... Kg5 {[%clk
0:00:23.6]} 56. Kg3 {[%clk 0:00:56.7]} 56... Rb3+ {[%clk 0:00:22.9]} 57. Kf2
{[%clk 0:00:56.8]} 57... Rb2+ {[%clk 0:00:23]} 58. Kg3 {[%clk 0:00:56.7]} 58...
Rb3+ {[%clk 0:00:23.5]} 59. Kh2 {[%clk 0:00:56.8]} 59... Kh4 {[%clk 0:00:23.1]}
60. Kg1 {[%clk 0:00:50.6]} 60... Kg3 {[%clk 0:00:22.3]} 61. Kf1 {[%clk 0:00:49]}
61... Rb1+ {[%clk 0:00:21.6]} 62. Ke2 {[%clk 0:00:49.2]} 62... Rb2+ {[%clk
0:00:22]} 63. Ke3 {[%clk 0:00:44.6]} 63... Rb3+ {[%clk 0:00:20.5]} 64. Kd2
{[%clk 0:00:44.2]} 64... Rb2+ {[%clk 0:00:20.7]} 65. Kc3 {[%clk 0:00:44.1]}
65... Rxg2 {[%clk 0:00:19.6]} 66. b5 {[%clk 0:00:43.4]} 66... Rg1 {[%clk
0:00:19.4]} 67. Rd3+ {[%clk 0:00:41.7]} 67... Kf2 {[%clk 0:00:16.9]} 68. Rd2+
{[%clk 0:00:41.5]} 68... Kf3 {[%clk 0:00:17.2]} 69. b6 {[%clk 0:00:41.5]} 69...
Rc1+ {[%clk 0:00:15.4]} 70. Rc2 {[%clk 0:00:41.5]} 70... Rxc2+ {[%clk
0:00:15.3]} 71. Kxc2 {[%clk 0:00:41.3]} 71... g3 {[%clk 0:00:16]} 72. b7 {[%clk
0:00:41.7]} 72... g2 {[%clk 0:00:16.6]} 73. b8=Q {[%clk 0:00:42.6]} 73... g1=Q
{[%clk 0:00:17.1]} 74. Qb7+ {[%clk 0:00:42.9]} 74... Kf2 {[%clk 0:00:15.8]} 75.
Qb6+ {[%clk 0:00:42.6]} 75... Kg2 {[%clk 0:00:15.7]} 76. Qg6+ {[%clk 0:00:42]}
76... Kh2 {[%clk 0:00:14.7]} 77. Qh5+ {[%clk 0:00:40.1]} 77... Kg2 {[%clk
0:00:14.8]} 78. Qg5+ {[%clk 0:00:40.1]} 78... Kh2 {[%clk 0:00:15.1]} 79. Qh4+
{[%clk 0:00:39.9]} 79... Kg2 {[%clk 0:00:15.7]} 80. Qg5+ {[%clk 0:00:38.8]}
80... Kh2 {[%clk 0:00:16]} 81. Qxf5 {[%clk 0:00:38.9]} 81... Qg2+ {[%clk
0:00:15.8]} 82. Kd1 {[%clk 0:00:38.3]} 82... Qg1+ {[%clk 0:00:15.5]} 83. Ke2
{[%clk 0:00:38.1]} 83... Qg2+ {[%clk 0:00:15.7]} 84. Ke3 {[%clk 0:00:38.7]}
84... Qh3+ {[%clk 0:00:15.8]} 85. Qxh3+ {[%clk 0:00:39.2]} 85... Kxh3 {[%clk
0:00:16.7]} 1/2-1/2

[Event "Early-Titled-Tuesday-Blitz-March-19-2024"]
[Site "Chess.com"]
[Date "2024.03.19"]
[Round "1"]
[White "guillembaches"]
[Black "Anton_Demchenko"]
[Result "1/2-1/2"]
[WhiteElo "2561"]
[BlackElo "3012"]
[TimeControl "180+1"]
[EndTime "8:08:31 PDT"]
[Termination "Game drawn by repetition"]

1. d4 {[%clk 0:03:00.9]} 1... Nf6 {[%clk 0:03:00.3]} 2. Nf3 {[%clk 0:03:01.5]}
2... g6 {[%clk 0:03:00.7]} 3. Bg5 {[%clk 0:03:02]} 3... Bg7 {[%clk 0:03:00]} 4.
Nbd2 {[%clk 0:03:02.4]} 4... O-O {[%clk 0:02:59.5]} 5. c3 {[%clk 0:03:03]} 5...
d6 {[%clk 0:02:58.9]} 6. e3 {[%clk 0:03:03.3]} 6... h6 {[%clk 0:02:57.5]} 7. Bh4
{[%clk 0:03:03]} 7... g5 {[%clk 0:02:56.3]} 8. Bg3 {[%clk 0:03:02.8]} 8... Bf5
{[%clk 0:02:57]} 9. Qb3 {[%clk 0:02:58.3]} 9... Nbd7 {[%clk 0:02:46.1]} 10. Be2
{[%clk 0:02:47.7]} 10... c5 {[%clk 0:02:41.3]} 11. O-O {[%clk 0:02:45.3]} 11...
Qb6 {[%clk 0:02:38.7]} 12. Qa3 {[%clk 0:02:38.8]} 12... Rfc8 {[%clk 0:02:29.6]}
13. Rfc1 {[%clk 0:02:38.3]} 13... a6 {[%clk 0:02:26.9]} 14. b4 {[%clk
0:02:32.1]} 14... cxb4 {[%clk 0:02:11.9]} 15. cxb4 {[%clk 0:02:31.5]} 15... Nh5
{[%clk 0:02:07.3]} 16. Nc4 {[%clk 0:02:15.4]} 16... Qa7 {[%clk 0:01:40.5]} 17.
Na5 {[%clk 0:01:46.1]} 17... Ndf6 {[%clk 0:01:30.5]} 18. Nd2 {[%clk 0:01:36.1]}
18... Nxg3 {[%clk 0:01:26.2]} 19. hxg3 {[%clk 0:01:37]} 19... d5 {[%clk
0:01:11.7]} 20. Bd3 {[%clk 0:01:32.1]} 20... Bd7 {[%clk 0:01:08.6]} 21. Rxc8+
{[%clk 0:01:24.7]} 21... Rxc8 {[%clk 0:01:08.3]} 22. Rc1 {[%clk 0:01:25.3]}
22... Qb8 {[%clk 0:00:56.3]} 23. Nab3 {[%clk 0:01:11.9]} 23... Rxc1+ {[%clk
0:00:46.9]} 24. Qxc1 {[%clk 0:01:11.5]} 24... e5 {[%clk 0:00:34.9]} 25. dxe5
{[%clk 0:01:04.9]} 25... Qxe5 {[%clk 0:00:35.8]} 26. Nd4 {[%clk 0:00:59.4]}
26... Ng4 {[%clk 0:00:29.3]} 27. N2f3 {[%clk 0:00:52.5]} 27... Qd6 {[%clk
0:00:29.8]} 28. a3 {[%clk 0:00:48.7]} 28... Ne5 {[%clk 0:00:15.8]} 29. Be2
{[%clk 0:00:43.2]} 29... g4 {[%clk 0:00:10.5]} 30. Nh4 {[%clk 0:00:38.1]} 30...
Bf8 {[%clk 0:00:07.9]} 31. Nhf5 {[%clk 0:00:35.7]} 31... Qf6 {[%clk 0:00:08.4]}
32. Qc2 {[%clk 0:00:33.2]} 32... h5 {[%clk 0:00:07.9]} 33. f4 {[%clk 0:00:23.2]}
33... gxf3 {[%clk 0:00:07.4]} 34. gxf3 {[%clk 0:00:23.8]} 34... b5 {[%clk
0:00:08.2]} 35. Kf2 {[%clk 0:00:21.1]} 35... Nc4 {[%clk 0:00:07.3]} 36. Bxc4
{[%clk 0:00:19.4]} 36... dxc4 {[%clk 0:00:07.1]} 37. Qe4 {[%clk 0:00:18.8]}
37... Be6 {[%clk 0:00:05.6]} 38. Nxe6 {[%clk 0:00:17.3]} 38... Qxe6 {[%clk
0:00:04.2]} 39. Qf4 {[%clk 0:00:17.3]} 39... Qf6 {[%clk 0:00:04.1]} 40. Qe4
{[%clk 0:00:15.6]} 40... c3 {[%clk 0:00:04.1]} 41. Nd4 {[%clk 0:00:16]} 41...
Qd6 {[%clk 0:00:02.8]} 42. Qc2 {[%clk 0:00:16]} 42... Qc7 {[%clk 0:00:02.8]} 43.
Nf5 {[%clk 0:00:15.3]} 43... Bg7 {[%clk 0:00:02.8]} 44. e4 {[%clk 0:00:15.4]}
44... Qc4 {[%clk 0:00:02.7]} 45. Ne3 {[%clk 0:00:15.5]} 45... Bd4 {[%clk
0:00:02.9]} 46. f4 {[%clk 0:00:13.6]} 46... Qc6 {[%clk 0:00:02.5]} 47. Kf3
{[%clk 0:00:13.9]} 47... Bxe3 {[%clk 0:00:02.3]} 48. Kxe3 {[%clk 0:00:14.8]}
48... Qc4 {[%clk 0:00:02.9]} 49. e5 {[%clk 0:00:14.6]} 49... Qc6 {[%clk
0:00:02.3]} 50. Qf5 {[%clk 0:00:14.7]} 50... Kf8 {[%clk 0:00:02.1]} 51. Qg5
{[%clk 0:00:14.3]} 51... Ke8 {[%clk 0:00:01.9]} 52. Qg8+ {[%clk 0:00:14.1]}
52... Ke7 {[%clk 0:00:02.5]} 53. Qg5+ {[%clk 0:00:14.5]} 53... Kd7 {[%clk
0:00:03.1]} 54. Qf5+ {[%clk 0:00:15]} 54... Kd8 {[%clk 0:00:03.7]} 55. Qd3+
{[%clk 0:00:15.2]} 55... Kc7 {[%clk 0:00:03.6]} 56. Qc2 {[%clk 0:00:15.6]} 56...
Kb6 {[%clk 0:00:03.4]} 57. Kd4 {[%clk 0:00:15.9]} 57... Qc4+ {[%clk 0:00:03.6]}
58. Ke3 {[%clk 0:00:15.7]} 58... a5 {[%clk 0:00:04.5]} 59. bxa5+ {[%clk
0:00:14.8]} 59... Kxa5 {[%clk 0:00:05.4]} 60. f5 {[%clk 0:00:15.1]} 60... Qc5+
{[%clk 0:00:05.3]} 61. Kf4 {[%clk 0:00:15]} 61... b4 {[%clk 0:00:05.5]} 62.
axb4+ {[%clk 0:00:14.1]} 62... Qxb4+ {[%clk 0:00:06.4]} 63. Ke3 {[%clk
0:00:14.5]} 63... Qc5+ {[%clk 0:00:05.3]} 64. Kd3 {[%clk 0:00:14.8]} 64... Kb4
{[%clk 0:00:06]} 65. Qb1+ {[%clk 0:00:14.6]} 65... Ka3 {[%clk 0:00:06.4]} 66.
Qa1+ {[%clk 0:00:14.6]} 66... Kb3 {[%clk 0:00:06.4]} 67. Qb1+ {[%clk 0:00:15.1]}
67... Ka3 {[%clk 0:00:06.4]} 68. Qa1+ {[%clk 0:00:15.5]} 68... Kb4 {[%clk
0:00:04.1]} 69. Qb1+ {[%clk 0:00:15.7]} 69... Ka3 {[%clk 0:00:03.1]} 1/2-1/2